Workbook

Sheet ЗАПОЛНИТЬ
B1: Жовтим кольором виділені поля для обов'язкового заповнення
A3: Установа | B3: Відділ освіти Жовківської РДА (Зарудцівська ЗОШ І-ІІ ст.)
A4: Назва казначейства де обслуговуєтесь | D4: Управління Державної казначейської служби у Жовківському районі Львівської області | O4: змінити на ваше УДК
A5: Територія | B5: 800300, Львівська обл., м.Жовква , вул.Є.Коновальця,4 | G5: наприклад -смт.Слов'яносербськ (Згідно довідника КОАТУУ)
A7: Вид бюджету | F7: 2 | L7: Державний
L8: Місцевий
A9: Код відомчої класифікації видатків та кредитування державного бюджету | I9: сюда ставят распорядители госбюджетных средств к примеру - 670,280,350
A10: Код типової відомчої класифікації видатків місцевих бюджетів | H10: 6 | I10: Орган з питань освіти і науки | Q10: вписати назву КВК
A11: тип ліній в таблицях--->>>
A12: КОДИ
A13: за ЄДРПОУ | B13: 39013038
A14: за КОАТУУ | B14: 4622700000
A15: за КОПФГ | B15: 410 | D15: Орган державної влади
A16: Звіт за
A17: Звіт за | B17: рік | C17: 2020 р.
A18: Звіт на | B18: 1 кв. | C18: 2020 р. | D18: =IF(B18="1 квітня",1,IF(B18="1 липня",2,IF(B18="1 жовтня",3,0))) -> 0 | E18: 01.10.2020 р. | F18: 18
A19: Дата подання звіту | C19: 1 квітня 2020 року
A20: КПОЛ | B20: 0 | C20: для ДБФ
A21: Код ГУДКСУ | B21: 06 | C21: двухзначный код вашей области для ДБФ
A22: Код УДКСУ | B22: 13 | C22: двухзначный код вашего района для ДБФ
A23: Тип бюджета | B23: 4 | C23: 1- обласний, 2 - міський , 3 - район у місті , 4 - районий, 5 - міста у районах, 6 - селищний, 7 - сільський (нужен для дбф файла)
A24: Код бюджета | B24: 365 | C24: трёхзначный код бюджета из которого вы финансируетесь, его знают ваши казначеи, обычно это последние три цифры доходных счетов
A26: Ініціали та прізвище КЕРІВНИКА | F26: Коваль М.С.
A28: Ініціали та прізвище ГОЛОВНОГО БУХГАЛТЕРА | F28: Жук О.С.
A30: Посада першого підпису | F30: Начальник
A31: Посада другого підпису | F31: Головний бухгалтер
A35: Для відкриття скритих листів треба зайти ФОРМАТ -ЛИСТ - ОТОБРАЗИТЬ
A36: ДЛЯ НОРМАЛЬНОЇ РОБОТИ ФОРМУЛ ЛИСТИ НЕОБХІДНО СКРИВАТИ А НЕ ВИДАЛЯТИ!!!!!
A37: БАЛАНС ЗАПОВНЮЄТЬСЯ В ОСТАННЮ ЧЕРГУ, СПОЧАТКУ ЗАПОВНІТЬ ВСІ ФОРМИ ПОТІМ БАЛАНС!!
A38: Ці та інші корисні бланки можно завантажити на https://buhgalter.com.ua
A39: автор розробки: Токарев Євген Васильович

Sheet Ф.2
G1: Додаток 1 до Порядку складання бюджетної звітності розпорядниками та одержувачами бюджетних коштів, звітності фондами загальнообов’язкового державного соціального і пенсійного страхування (пункт 1 розділу ІІ)
A4: ЗВІТ
A5: =IF([1]ЗАПОЛНИТЬ!$F$7=1,CONCATENATE([1]шапки!A2),CONCATENATE([1]шапки!A2,[1]шапки!C2)) -> про надходження та використання коштів загального фонду (форма №2д, | G5: =IF([1]ЗАПОЛНИТЬ!$F$7=1,[1]шапки!C2,[1]шапки!D2) -> №2м) | H5: =IF(ЗАПОЛНИТЬ!$F$7=1,#REF!,"") -> 
A6: =CONCATENATE("за ",ЗАПОЛНИТЬ!$B$17," ",ЗАПОЛНИТЬ!$C$17) -> за рік 2020 р.
J7: коди
A9: Установа | B9: =ЗАПОЛНИТЬ!B3 -> Відділ освіти Жовківської РДА (Зарудцівська ЗОШ І-ІІ ст.) | H9: за ЄДРПОУ | J9: =ЗАПОЛНИТЬ!B13 -> 39013038
A10: Територія | B10: =ЗАПОЛНИТЬ!B5 -> 800300, Львівська обл., м.Жовква , вул.Є.Коновальця,4 | H10: за КОАТУУ | J10: =ЗАПОЛНИТЬ!B14 -> 4622700000
A11: Організаційно-правова форма господарювання | B11: =ЗАПОЛНИТЬ!D15 -> Орган державної влади | H11: за КОПФГ | J11: =ЗАПОЛНИТЬ!B15 -> 410
A12: Код та назва відомчої класифікації видатків та кредитування державного бюджету | D12: =ЗАПОЛНИТЬ!H9 -> 0 | E12: =IF(D12>0,VLOOKUP(D12,#REF!,2,FALSE),"") -> 
A13: Код та назва програмної класифікації видатків та кредитування державного бюджету | E13: =IF(D13>0,VLOOKUP(D13,#REF!,2,FALSE),"") -> 
A14: Код та назва типової відомчої класифікації видатків та кредитування місцевих бюджетів | D14: =ЗАПОЛНИТЬ!H10 -> 6 | E14: =ЗАПОЛНИТЬ!I10 -> Орган з питань освіти і науки
A15: Код та назва програмної класифікації видатків та кредитування місцевих бюджетів (код та назва Типової програмної класифікації видатків та кредитування місцевих бюджетів / Тимчасової класифікації видатків та кредитування для бюджетів місцевого самоврядування, які не застосовують програмно-цільового методу) | D15: 0611020 | E15: школи
A16: Періодичність: квартальна, річна
A17: Одиниця виміру: грн, коп.
A19: Показники | B19: КЕКВ та/або ККК | C19: Код рядка | D19: Затверджено на звітний рік | E19: Затверджено на звітний період (рік)1 | F19: Залишок на початок звітного року | G19: Надійшло коштів за звітний період (рік) | H19: Касові за звітний період (рік) | I19: Фактичні за звітний період (рік) | J19: Залишок на кінець звітного періоду (року)
A22: 1 | B22: 2 | C22: 3 | D22: 4 | E22: 5 | F22: 6 | G22: 7 | H22: 8 | I22: 9 | J22: 9
A23: Видатки та надання кредитів - усього | B23: Х | C23: 010 | D23: =D24+D59+D79+D84+D87 -> 1834570 | E23: =E26+E29+E32+E33+E37+E45+E46+E86+E54 -> 576370 | F23: =F24+F59+F79+F84+F87 -> 0 | G23: =G24+G59+G79+G84+G87 -> 453165.13 | H23: =H24+H59+H79+H84+H87 -> 453165.13 | I23: =I24+I59+I79+I84+I87 -> 0 | J23: =F23+G23-H23 -> 0
A24: у тому числі: Поточні видатки | B24: 2000 | C24: 020 | D24: =D25+D30+D47+D50+D54+D58 -> 1834570 | E24: 0 | F24: 0 | G24: 453165.13 | H24: 453165.13 | I24: 0 | J24: =F24+G24-H24 -> 0
A25: Оплата праці і нарахування на заробітну плату | B25: 2100 | C25: 030 | D25: =D26+D29 -> 1762000 | E25: 0 | F25: =F26+F29 -> 0 | G25: =G26+G29 -> 450057.33 | H25: =H26+H29 -> 450057.33 | I25: =I26+I29 -> 0 | J25: 0
A26: Оплата праці | B26: 2110 | C26: 040 | D26: =SUM(D27:D28) -> 1444000 | E26: 480000 | F26: 0 | G26: 369665.68 | H26: 369665.68 | I26: 0 | J26: 0
A27: Заробітна плата | B27: 2111 | C27: 050 | D27: 1444000 | E27: 0 | F27: 0 | G27: 369665.68 | H27: 369665.68 | I27: 0 | J27: 0
A28: Грошове забезпечення військовослужбовців | B28: 2112 | C28: 060 | D28: 0 | E28: 0 | F28: 0 | G28: 0 | H28: 0 | I28: 0 | J28: 0
A29: Нарахування на оплату праці | B29: 2120 | C29: 070 | D29: 318000 | E29: 85000 | F29: 0 | G29: 80391.65 | H29: 80391.65 | I29: 0 | J29: 0
A30: Використання товарів і послуг | B30: 2200 | C30: 080 | D30: =SUM(D31:D37)+D44 -> 72570 | E30: 0 | F30: =SUM(F31:F37)+F44 -> 0 | G30: =SUM(G31:G37)+G44 -> 3107.8 | H30: =SUM(H31:H37)+H44 -> 3107.8 | I30: =SUM(I31:I37)+I44 -> 0 | J30: 0
A31: Предмети, матеріали, обладнання та інвентар | B31: 2210 | C31: 090 | D31: 4000 | E31: 0 | F31: 0 | G31: 495 | H31: 495 | I31: 0 | J31: 0
A32: Медикаменти та перев’язувальні матеріали | B32: 2220 | C32: 100 | E32: 0 | F32: 0 | G32: 0 | H32: 0 | I32: 0 | J32: 0
A33: Продукти харчування | B33: 2230 | C33: 110 | D33: 9000 | E33: 800 | F33: 0 | G33: 677.49 | H33: 677.49 | I33: 0 | J33: 0
A34: Оплата послуг (крім комунальних) | B34: 2240 | C34: 120 | D34: 3000 | E34: 0 | F34: 0 | G34: 656 | H34: 656 | I34: 0 | J34: 0
A35: Видатки на відрядження | B35: 2250 | C35: 130 | D35: 2770 | E35: 0 | F35: 0 | G35: 562 | H35: 562 | I35: 0 | J35: 0
A36: Видатки та заходи спеціального призначення | B36: 2260 | C36: 140 | D36: 0 | E36: 0 | F36: 0 | G36: 0 | H36: 0 | I36: 0 | J36: 0
A37: Оплата комунальних послуг та енергоносіїв | B37: 2270 | C37: 150 | D37: =SUM(D38:D43) -> 49800 | E37: 800 | F37: =SUM(F38:F43) -> 0 | G37: =SUM(G38:G43) -> 717.31 | H37: =SUM(H38:H43) -> 717.31 | I37: =SUM(I38:I43) -> 0 | J37: =F37+G37-H37 -> 0
A38: Оплата теплопостачання | B38: 2271 | C38: 160 | D38: 0 | E38: 0 | F38: 0 | G38: 0 | H38: 0 | I38: 0 | J38: 0
A39: Оплата водопостачання та водовідведення | B39: 2272 | C39: 170 | D39: 1100 | E39: 0 | F39: 0 | G39: 120.01 | H39: 120.01 | I39: 0 | J39: 0
A40: Оплата електроенергії | B40: 2273 | C40: 180 | D40: 6000 | E40: 0 | F40: 0 | G40: 597.3 | H40: 597.3 | I40: 0 | J40: 0
A41: Оплата природного газу | B41: 2274 | C41: 190 | E41: 0 | F41: 0 | G41: 0 | H41: 0 | I41: 0 | J41: 0
A42: Оплата інших енергоносіїв | B42: 2275 | C42: 200 | D42: 42700 | E42: 0 | F42: 0 | I42: 0 | J42: 0
A43: Оплата енергосервісу | B43: 2276 | C43: 210 | D43: 0 | E43: 0 | F43: 0 | G43: 0 | H43: 0 | I43: 0 | J43: =F43+G43-H43 -> 0
A44: Дослідження і розробки, окремі заходи по реалізації державних (регіональних) програм | B44: 2280 | C44: 220 | D44: =SUM(D45:D46) -> 4000 | E44: 0 | F44: =SUM(F45:F46) -> 0 | G44: =SUM(G45:G46) -> 0 | H44: =SUM(H45:H46) -> 0 | I44: =SUM(I45:I46) -> 0 | J44: 0
A45: Дослідження і розробки, окремі заходи розвитку по реалізації державних (регіональних) програм | B45: 2281 | C45: 230 | D45: 0 | E45: 0 | F45: 0 | G45: 0 | H45: 0 | I45: 0 | J45: 0
A46: Окремі заходи по реалізації державних (регіональних) програм, не віднесені до заходів розвитку | B46: 2282 | C46: 240 | D46: 4000 | E46: 0 | F46: 0 | G46: 0 | H46: 0 | I46: 0 | J46: 0
A47: Обслуговування боргових зобов’язань | B47: 2400 | C47: 250 | D47: =SUM(D48:D49) -> 0 | E47: 0 | F47: 0 | G47: 0 | H47: 0 | I47: 0 | J47: 0
A48: Обслуговування внутрішніх боргових зобов’язань | B48: 2410 | C48: 260 | D48: 0 | E48: 0 | F48: 0 | G48: 0 | H48: 0 | I48: 0 | J48: 0
A49: Обслуговування зовнішніх боргових зобов’язань | B49: 2420 | C49: 270 | D49: 0 | E49: 0 | F49: 0 | G49: 0 | H49: 0 | I49: 0 | J49: 0
A50: Поточні трансферти | B50: 2600 | C50: 280 | D50: =SUM(D51:D53) -> 0 | E50: 0 | F50: 0 | G50: 0 | H50: 0 | I50: 0 | J50: 0
A51: Субсидії та поточні трансферти підприємствам (установам, організаціям) | B51: 2610 | C51: 290 | D51: 0 | E51: 0 | F51: 0 | G51: 0 | H51: 0 | I51: 0 | J51: 0
A52: Поточні трансферти органам державного управління інших рівнів | B52: 2620 | C52: 300 | D52: 0 | E52: 0 | F52: 0 | G52: 0 | H52: 0 | I52: 0 | J52: 0
A53: Поточні трансферти урядам іноземних держав та міжнародним організаціям | B53: 2630 | C53: 310 | D53: 0 | E53: 0 | F53: 0 | G53: 0 | H53: 0 | I53: 0 | J53: 0
A54: Соціальне забезпечення | B54: 2700 | C54: 320 | D54: =SUM(D55:D57) -> 0 | E54: 0 | F54: 0 | G54: 0 | H54: 0 | I54: 0 | J54: 0
A55: Виплата пенсій і допомоги | B55: 2710 | C55: 330 | D55: 0 | E55: 0 | F55: 0 | G55: 0 | H55: 0 | I55: 0 | J55: 0
A56: Стипендії | B56: 2720 | C56: 340 | D56: 0 | E56: 0 | F56: 0 | G56: 0 | H56: 0 | I56: 0 | J56: 0
A57: Інші виплати населенню | B57: 2730 | C57: 350 | D57: 0 | E57: 0 | F57: 0 | G57: 0 | H57: 0 | I57: 0 | J57: 0
A58: Інші поточні видатки | B58: 2800 | C58: 360 | D58: 0 | E58: 0 | F58: 0 | G58: 0 | H58: 0 | I58: 0 | J58: 0
A59: Капітальні видатки | B59: 3000 | C59: 370 | D59: =D60+D74 -> 0 | E59: 0 | F59: 0 | G59: 0 | H59: 0 | I59: 0 | J59: 0
A60: Придбання основного капіталу | B60: 3100 | C60: 380 | D60: =D61+D62+D65+D68+D72+D73 -> 0 | E60: 0 | F60: 0 | G60: 0 | H60: 0 | I60: 0 | J60: 0
A61: Придбання обладнання і предметів довгострокового користування | B61: 3110 | C61: 390 | D61: 0 | E61: 0 | F61: 0 | G61: 0 | H61: 0 | I61: 0 | J61: 0
A62: Капітальне будівництво (придбання) | B62: 3120 | C62: 400 | D62: =SUM(D63:D64) -> 0 | E62: 0 | F62: 0 | G62: 0 | H62: 0 | I62: 0 | J62: 0
A63: Капітальне будівництво (придбання) житла | B63: 3121 | C63: 410 | D63: 0 | E63: 0 | F63: 0 | G63: 0 | H63: 0 | I63: 0 | J63: 0
A64: Капітальне будівництво (придбання) інших об’єктів | B64: 3122 | C64: 420 | D64: 0 | E64: 0 | F64: 0 | G64: 0 | H64: 0 | I64: 0 | J64: 0
A65: Капітальний ремонт | B65: 3130 | C65: 430 | D65: =SUM(D66:D67) -> 0 | E65: 0 | F65: 0 | G65: 0 | H65: 0 | I65: 0 | J65: 0
A66: Капітальний ремонт житлового фонду (приміщень) | B66: 3131 | C66: 440 | D66: 0 | E66: 0 | F66: 0 | G66: 0 | H66: 0 | I66: 0 | J66: 0
A67: Капітальний ремонт інших об’єктів | B67: 3132 | C67: 450 | D67: 0 | E67: 0 | F67: 0 | G67: 0 | H67: 0 | I67: 0 | J67: 0
A68: Реконструкція та реставрація | B68: 3140 | C68: 460 | D68: =SUM(D69:D71) -> 0 | E68: 0 | F68: 0 | G68: 0 | H68: 0 | I68: 0 | J68: 0
A69: Реконструкція житлового фонду (приміщень) | B69: 3141 | C69: 470 | D69: 0 | E69: 0 | F69: 0 | G69: 0 | H69: 0 | I69: 0 | J69: 0
A70: Реконструкція та реставрація інших об’єктів | B70: 3142 | C70: 480 | D70: 0 | E70: 0 | F70: 0 | G70: 0 | H70: 0 | I70: 0 | J70: 0
A71: Реставрація пам’яток культури, історії та архітектури | B71: 3143 | C71: 490 | D71: 0 | E71: 0 | F71: 0 | G71: 0 | H71: 0 | I71: 0 | J71: 0
A72: Створення державних запасів і резервів | B72: 3150 | C72: 500 | D72: 0 | E72: 0 | F72: 0 | G72: 0 | H72: 0 | I72: 0 | J72: 0
A73: Придбання землі та нематеріальних активів | B73: 3160 | C73: 510 | D73: 0 | E73: 0 | F73: 0 | G73: 0 | H73: 0 | I73: 0 | J73: 0
A74: Капітальні трансферти | B74: 3200 | C74: 520 | D74: =SUM(D75:D78) -> 0 | E74: 0 | F74: 0 | G74: 0 | H74: 0 | I74: 0 | J74: 0
A75: Капітальні трансферти підприємствам (установам, організаціям) | B75: 3210 | C75: 530 | D75: 0 | E75: 0 | F75: 0 | G75: 0 | H75: 0 | I75: 0 | J75: 0
A76: Капітальні трансферти органам державного управління інших рівнів | B76: 3220 | C76: 540 | D76: 0 | E76: 0 | F76: 0 | G76: 0 | H76: 0 | I76: 0 | J76: 0
A77: Капітальні трансферти урядам іноземних держав та міжнародним організаціям | B77: 3230 | C77: 550 | D77: 0 | E77: 0 | F77: 0 | G77: 0 | H77: 0 | I77: 0 | J77: 0
A78: Капітальні трансферти населенню | B78: 3240 | C78: 560 | D78: 0 | E78: 0 | F78: 0 | G78: 0 | H78: 0 | I78: 0 | J78: 0
A79: Внутрішнє кредитування | B79: 4100 | C79: 570 | D79: =SUM(D80) -> 0 | E79: 0 | F79: 0 | G79: 0 | H79: 0 | I79: 0 | J79: 0
A80: Надання внутрішніх кредитів | B80: 4110 | C80: 580 | D80: =SUM(D81:D83) -> 0 | E80: 0 | F80: 0 | G80: 0 | H80: 0 | I80: 0 | J80: 0
A81: Надання кредитів органам державного управління інших рівнів | B81: 4111 | C81: 590 | D81: 0 | E81: 0 | F81: 0 | G81: 0 | H81: 0 | I81: 0 | J81: 0
A82: Надання кредитів підприємствам, установам, організаціям | B82: 4112 | C82: 600 | D82: 0 | E82: 0 | F82: 0 | G82: 0 | H82: 0 | I82: 0 | J82: 0
A83: Надання інших внутрішніх кредитів | B83: 4113 | C83: 610 | D83: 0 | E83: 0 | F83: 0 | G83: 0 | H83: 0 | I83: 0 | J83: 0
A84: Зовнішнє кредитування | B84: 4200 | C84: 620 | D84: =D85 -> 0 | E84: 0 | F84: 0 | G84: 0 | H84: 0 | I84: 0 | J84: 0
A85: Надання зовнішніх кредитів | B85: 4210 | C85: 630 | D85: 0 | E85: 0 | F85: 0 | G85: 0 | H85: 0 | I85: 0 | J85: 0
A86: Інші видатки | B86: 5000 | C86: 640 | D86: X | E86: =D31+D34+D35 -> 9770 | F86: X | G86: X | H86: X | I86: X | J86: X
A87: Нерозподілені видатки | B87: 9000 | C87: 650 | D87: 0 | E87: 0 | F87: 0 | G87: 0 | H87: 0 | I87: 0 | J87: 0
C88: 650
A100: 1 Заповнюється розпорядниками бюджетних коштів.
A101: =ЗАПОЛНИТЬ!F30 -> Начальник | G101: =ЗАПОЛНИТЬ!F26 -> Коваль М.С.
D102: (підпис) | G102: (ініціали, прізвище)
A103: =ЗАПОЛНИТЬ!F31 -> Головний бухгалтер | G103: =ЗАПОЛНИТЬ!F28 -> Жук О.С.
A104: =ЗАПОЛНИТЬ!C19 -> 1 квітня 2020 року | D104: (підпис) | G104: (ініціали, прізвище)

Sheet Ф.4.1
J1: Додаток 2 до Порядку складання бюджетної звітності розпорядниками та одержувачами бюджетних коштів, звітності фондами загальнообов’язкового державного соціального і пенсійного страхування (пункт 1 розділу ІІ)
A3: ЗВІТ
A4: =IF([1]ЗАПОЛНИТЬ!$F$7=1,CONCATENATE([1]шапки!A3),CONCATENATE([1]шапки!A3,[1]шапки!C3)) -> про надходження і використання коштів, отриманих як плата за послуги (форма№ 4-1д, | K4: =IF([1]ЗАПОЛНИТЬ!$F$7=1,[1]шапки!C3,[1]шапки!D3) -> № 4-1м), | N4: =IF(ЗАПОЛНИТЬ!$F$7=1,#REF!,"") -> 
A6: =CONCATENATE("за ",ЗАПОЛНИТЬ!$B$17," ",ЗАПОЛНИТЬ!$C$17) -> за рік 2020 р.
Q8: коди
A9: Установа | B9: =ЗАПОЛНИТЬ!B3 -> Відділ освіти Жовківської РДА (Зарудцівська ЗОШ І-ІІ ст.) | M9: =ЗАПОЛНИТЬ!A13 -> за ЄДРПОУ | Q9: =ЗАПОЛНИТЬ!B13 -> 39013038
A10: Територія | B10: =ЗАПОЛНИТЬ!B5 -> 800300, Львівська обл., м.Жовква , вул.Є.Коновальця,4 | M10: =ЗАПОЛНИТЬ!A14 -> за КОАТУУ | Q10: =ЗАПОЛНИТЬ!B14 -> 4622700000
A11: Організаційно-правова форма господарювання | B11: =ЗАПОЛНИТЬ!D15 -> Орган державної влади | M11: =ЗАПОЛНИТЬ!A15 -> за КОПФГ | Q11: =ЗАПОЛНИТЬ!B15 -> 410
A12: Код та назва відомчої класифікації видатків та кредитування державного бюджету | E12: =ЗАПОЛНИТЬ!H9 -> 0 | G12: =IF(E12>0,VLOOKUP(E12,#REF!,2,FALSE),"") -> 
A13: Код та назва програмної класифікації видатків та кредитування державного бюджету | G13: =IF(E13>0,VLOOKUP(E13,#REF!,2,FALSE),"") -> 
A14: Код та назва типової відомчої класифікації видатків та кредитування місцевих бюджетів | E14: =ЗАПОЛНИТЬ!H10 -> 6 | G14: =ЗАПОЛНИТЬ!I10 -> Орган з питань освіти і науки
A15: Код та назва програмної класифікації видатків та кредитування місцевих бюджетів (код та назва Типової програмної класифікації видатків та кредитування місцевих бюджетів / Тимчасової класифікації видатків та кредитування для бюджетів місцевого самоврядування, які не застосовують програмно-цільового методу) | E15: 0611020 | G15: школи
A16: Періодичність: місячна, квартальна, річна.
A17: Одиниця виміру: грн, коп.
A18: Показники | B18: КЕКВ | C18: Код рядка | D18: Затверджено на звітний рік | E18: Залишок на початок звітного року | G18: Перераховано залишок | H18: Отримано залишок | I18: Нарахо-вано доходів за звітний період (рік) | J18: Надій-шло коштів за звітний період (рік) | K18: Касові за звітний період (рік) | O18: Фактичні за звітний період (рік) | Q18: Залишок на кінець звітного періоду (року)
E19: усього | F19: у тому числі на рахунках в установах банків | K19: усього | L19: у тому числі | O19: усього | P19: у т.ч. проведені за видатками загального фонду
L20: перерахо-вані з рахунків в установах банків | M20: спрямовано на погашення заборгованості загального фонду | Q20: усього | R20: у тому числі на рахунках в устано-вах банків
M21: усього | N21: у тому числі перера-ховані з рахунків в установах банків
A22: 1 | B22: 2 | C22: 3 | D22: 4 | E22: 5 | F22: 6 | G22: 7 | H22: 8 | I22: 9 | J22: 9 | K22: 10 | L22: 11 | M22: 12 | N22: 13 | O22: 15 | P22: 16 | Q22: 14 | R22: 15
A23: Надходження коштів – усього | B23: Х | C23: 010 | D23: =SUM(D24:D28) -> 0 | E23: 778.3 | F23: 0 | G23: 0 | H23: 0 | I23: =SUM(I24:I27) -> 0 | J23: =SUM(J24:J27) -> 2406.5 | K23: Х | L23: Х | M23: Х | N23: Х | O23: Х | P23: Х | Q23: =E23-G23+H23+J23-K29 -> 1025.68 | R23: 0
A24: За послуги, що надаються бюджетними установами згідно з їх основною діяльністю | B24: Х | C24: 020 | E24: Х | F24: Х | G24: Х | H24: Х | I24: 0 | J24: 2406.5 | K24: Х | L24: Х | M24: Х | N24: Х | O24: Х | P24: Х | Q24: Х | R24: Х
A25: Від додаткової (господарської) діяльності | B25: Х | C25: 030 | D25: 0 | E25: Х | F25: Х | G25: Х | H25: Х | I25: 0 | J25: 0 | K25: Х | L25: Х | M25: Х | N25: Х | O25: Х | P25: Х | Q25: Х | R25: Х
A26: Від оренди майна бюджетних установ | B26: Х | C26: 040 | D26: 0 | E26: Х | F26: Х | G26: Х | H26: Х | I26: 0 | J26: 0 | K26: Х | L26: Х | M26: Х | N26: Х | O26: Х | P26: Х | Q26: Х | R26: Х
A27: Від реалізації в установленому поряду майна (крім нерухомого майна) | B27: Х | C27: 050 | D27: 0 | E27: Х | F27: Х | G27: Х | H27: Х | I27: 0 | J27: 0 | K27: Х | L27: Х | M27: Х | N27: Х | O27: Х | P27: Х | Q27: Х | R27: Х
A28: Фінансування | B28: Х | C28: 060 | D28: 0 | E28: Х | F28: Х | G28: Х | H28: Х | I28: Х | J28: Х | K28: Х | L28: Х | M28: Х | N28: Х | O28: Х | P28: Х | Q28: Х | R28: Х
A29: Видатки - усього | B29: Х | C29: 070 | D29: =D31+D66 -> 0 | E29: Х | F29: Х | G29: Х | H29: Х | I29: Х | J29: Х | K29: =K31+K66 -> 2159.12 | L29: 0 | M29: 0 | N29: 0 | O29: 0 | P29: 0 | Q29: Х | R29: Х
A30: у тому числі:
A31: Поточні видатки | B31: 2000 | C31: 080 | D31: =D32+D37+D54+D57+D61+D65 -> 0 | E31: Х | F31: Х | G31: Х | H31: Х | I31: Х | J31: Х | K31: =K32+K37+K54+K57+K61+K65 -> 2159.12 | L31: 0 | M31: 0 | N31: 0 | O31: 0 | P31: 0 | Q31: Х | R31: Х
A32: Оплата праці і нарахування на заробітну плату | B32: 2100 | C32: 090 | D32: =D33+D36 -> 0 | E32: Х | F32: Х | G32: Х | H32: Х | I32: Х | J32: Х | K32: =K33+K36 -> 0 | L32: 0 | M32: 0 | N32: 0 | O32: 0 | P32: 0 | Q32: Х | R32: Х
A33: Оплата праці | B33: 2110 | C33: 100 | D33: =SUM(D34:D35) -> 0 | E33: Х | F33: Х | G33: Х | H33: Х | I33: Х | J33: Х | K33: =SUM(K34:K35) -> 0 | L33: 0 | M33: 0 | N33: 0 | O33: 0 | P33: 0 | Q33: Х | R33: Х
A34: Заробітна плата | B34: 2111 | C34: 110 | D34: 0 | E34: Х | F34: Х | G34: Х | H34: Х | I34: Х | J34: Х | K34: 0 | L34: 0 | M34: 0 | N34: 0 | O34: 0 | P34: 0 | Q34: Х | R34: Х
A35: Грошове забезпечення військовослужбовців | B35: 2112 | C35: 120 | D35: 0 | E35: Х | F35: Х | G35: Х | H35: Х | I35: Х | J35: Х | K35: 0 | L35: 0 | M35: 0 | N35: 0 | O35: 0 | P35: 0 | Q35: Х | R35: Х
A36: Нарахування на оплату праці | B36: 2120 | C36: 130 | D36: 0 | E36: Х | F36: Х | G36: Х | H36: Х | I36: Х | J36: Х | K36: 0 | L36: 0 | M36: 0 | N36: 0 | O36: 0 | P36: 0 | Q36: Х | R36: Х
A37: Використання товарів і послуг | B37: 2200 | C37: 140 | D37: =SUM(D38:D44)+D51 -> 0 | E37: Х | F37: Х | G37: Х | H37: Х | I37: Х | J37: Х | K37: =SUM(K38:K44)+K51 -> 2159.12 | L37: 0 | M37: 0 | N37: 0 | O37: 0 | P37: 0 | Q37: Х | R37: Х
A38: Предмети, матеріали, обладнання та інвентар | B38: 2210 | C38: 150 | D38: 0 | E38: Х | F38: Х | G38: Х | H38: Х | I38: Х | J38: Х | L38: 0 | O38: 0 | P38: 0 | Q38: Х | R38: Х
A39: Медикаменти та перев’язувальні матеріали | B39: 2220 | C39: 160 | D39: 0 | E39: Х | F39: Х | G39: Х | H39: Х | I39: Х | J39: Х | L39: 0 | M39: 0 | N39: 0 | O39: 0 | P39: 0 | Q39: Х | R39: Х
A40: Продукти харчування | B40: 2230 | C40: 170 | D40: 0 | E40: Х | F40: Х | G40: Х | H40: Х | I40: Х | J40: Х | K40: 2124.12 | L40: 0 | O40: 0 | P40: 0 | Q40: Х | R40: Х
A41: Оплата послуг (крім комунальних) | B41: 2240 | C41: 180 | D41: 0 | E41: Х | F41: Х | G41: Х | H41: Х | I41: Х | J41: Х | K41: 35 | L41: 0 | O41: 0 | P41: 0 | Q41: Х | R41: Х
A42: Видатки на відрядження | B42: 2250 | C42: 190 | D42: 0 | E42: Х | F42: Х | G42: Х | H42: Х | I42: Х | J42: Х | K42: 0 | L42: 0 | M42: 0 | N42: 0 | O42: 0 | P42: 0 | Q42: Х | R42: Х
A43: Видатки та заходи спеціального призначення | B43: 2260 | C43: 200 | D43: 0 | E43: Х | F43: Х | G43: Х | H43: Х | I43: Х | J43: Х | K43: 0 | L43: 0 | M43: 0 | N43: 0 | O43: 0 | P43: 0 | Q43: Х | R43: Х
A44: Оплата комунальних послуг та енергоносіїв | B44: 2270 | C44: 210 | D44: =SUM(D45:D50) -> 0 | E44: Х | F44: Х | G44: Х | H44: Х | I44: Х | J44: Х | K44: =SUM(K45:K50) -> 0 | L44: 0 | M44: 0 | N44: 0 | O44: 0 | P44: 0 | Q44: Х | R44: Х
A45: Оплата теплопостачання | B45: 2271 | C45: 220 | D45: 0 | E45: Х | F45: Х | G45: Х | H45: Х | I45: Х | J45: Х | K45: 0 | L45: 0 | M45: 0 | N45: 0 | O45: 0 | P45: 0 | Q45: Х | R45: Х
A46: Оплата водопостачання та водовідведення | B46: 2272 | C46: 230 | D46: 0 | E46: Х | F46: Х | G46: Х | H46: Х | I46: Х | J46: Х | K46: 0 | L46: 0 | M46: 0 | N46: 0 | O46: 0 | P46: 0 | Q46: Х | R46: Х
A47: Оплата електроенергії | B47: 2273 | C47: 240 | D47: 0 | E47: Х | F47: Х | G47: Х | H47: Х | I47: Х | J47: Х | K47: 0 | L47: 0 | M47: 0 | N47: 0 | O47: 0 | P47: 0 | Q47: Х | R47: Х
A48: Оплата природного газу | B48: 2274 | C48: 250 | D48: 0 | E48: Х | F48: Х | G48: Х | H48: Х | I48: Х | J48: Х | K48: 0 | L48: 0 | M48: 0 | N48: 0 | O48: 0 | P48: 0 | Q48: Х | R48: Х
A49: Оплата інших енергоносіїв | B49: 2275 | C49: 260 | D49: 0 | E49: Х | F49: Х | G49: Х | H49: Х | I49: Х | J49: Х | K49: 0 | L49: 0 | M49: 0 | N49: 0 | O49: 0 | P49: 0 | Q49: Х | R49: Х
A50: Оплата енергосервісу | B50: 2276 | C50: 270 | D50: 0 | E50: Х | F50: Х | G50: Х | H50: Х | I50: Х | J50: Х | K50: 0 | L50: 0 | M50: 0 | N50: 0 | O50: 0 | P50: 0 | Q50: Х | R50: Х
A51: Дослідження і розробки, окремі заходи по реалізації державних (регіональних) програм | B51: 2280 | C51: 280 | D51: =SUM(D52:D53) -> 0 | E51: Х | F51: Х | G51: Х | H51: Х | I51: Х | J51: Х | K51: =SUM(K52:K53) -> 0 | L51: 0 | M51: 0 | N51: 0 | O51: 0 | P51: 0 | Q51: Х | R51: Х
A52: Дослідження і розробки, окремі заходи розвитку по реалізації державних (регіональних) програм | B52: 2281 | C52: 290 | D52: 0 | E52: Х | F52: Х | G52: Х | H52: Х | I52: Х | J52: Х | K52: 0 | L52: 0 | M52: 0 | N52: 0 | O52: 0 | P52: 0 | Q52: Х | R52: Х
A53: Окремі заходи по реалізації державних (регіональних) програм, не віднесені до заходів розвитку | B53: 2282 | C53: 300 | D53: 0 | E53: Х | F53: Х | G53: Х | H53: Х | I53: Х | J53: Х | K53: 0 | L53: 0 | M53: 0 | N53: 0 | O53: 0 | P53: 0 | Q53: Х | R53: Х
A54: Обслуговування боргових зобов’язань | B54: 2400 | C54: 310 | D54: =SUM(D55:D56) -> 0 | E54: Х | F54: Х | G54: Х | H54: Х | I54: Х | J54: Х | K54: =SUM(K55:K56) -> 0 | L54: 0 | M54: 0 | N54: 0 | O54: 0 | P54: 0 | Q54: Х | R54: Х
A55: Обслуговування внутрішніх боргових зобов’язань | B55: 2410 | C55: 320 | D55: 0 | E55: Х | F55: Х | G55: Х | H55: Х | I55: Х | J55: Х | K55: 0 | L55: 0 | M55: 0 | N55: 0 | O55: 0 | P55: 0 | Q55: Х | R55: Х
A56: Обслуговування зовнішніх боргових зобов’язань | B56: 2420 | C56: 330 | D56: 0 | E56: Х | F56: Х | G56: Х | H56: Х | I56: Х | J56: Х | K56: 0 | L56: 0 | M56: 0 | N56: 0 | O56: 0 | P56: 0 | Q56: Х | R56: Х
A57: Поточні трансферти | B57: 2600 | C57: 340 | D57: =SUM(D58:D60) -> 0 | E57: Х | F57: Х | G57: Х | H57: Х | I57: Х | J57: Х | K57: =SUM(K58:K60) -> 0 | L57: 0 | M57: 0 | N57: 0 | O57: 0 | P57: 0 | Q57: Х | R57: Х
A58: Субсидії та поточні трансферти підприємствам (установам, організаціям) | B58: 2610 | C58: 350 | D58: 0 | E58: Х | F58: Х | G58: Х | H58: Х | I58: Х | J58: Х | K58: 0 | L58: 0 | M58: 0 | N58: 0 | O58: 0 | P58: 0 | Q58: Х | R58: Х
A59: Поточні трансферти органам державного управління інших рівнів | B59: 2620 | C59: 360 | D59: 0 | E59: Х | F59: Х | G59: Х | H59: Х | I59: Х | J59: Х | K59: 0 | L59: 0 | M59: 0 | N59: 0 | O59: 0 | P59: 0 | Q59: Х | R59: Х
A60: Поточні трансферти урядам іноземних держав та міжнародним організаціям | B60: 2630 | C60: 370 | D60: 0 | E60: Х | F60: Х | G60: Х | H60: Х | I60: Х | J60: Х | K60: 0 | L60: 0 | M60: 0 | N60: 0 | O60: 0 | P60: 0 | Q60: Х | R60: Х
A61: Соціальне забезпечення | B61: 2700 | C61: 380 | D61: =SUM(D62:D64) -> 0 | E61: Х | F61: Х | G61: Х | H61: Х | I61: Х | J61: Х | K61: =SUM(K62:K64) -> 0 | L61: 0 | M61: 0 | N61: 0 | O61: 0 | P61: 0 | Q61: Х | R61: Х
A62: Виплата пенсій і допомоги | B62: 2710 | C62: 390 | D62: 0 | E62: Х | F62: Х | G62: Х | H62: Х | I62: Х | J62: Х | K62: 0 | L62: 0 | M62: 0 | N62: 0 | O62: 0 | P62: 0 | Q62: Х | R62: Х
A63: Стипендії | B63: 2720 | C63: 400 | D63: 0 | E63: Х | F63: Х | G63: Х | H63: Х | I63: Х | J63: Х | K63: 0 | L63: 0 | M63: 0 | N63: 0 | O63: 0 | P63: 0 | Q63: Х | R63: Х
A64: Інші виплати населенню | B64: 2730 | C64: 410 | D64: 0 | E64: Х | F64: Х | G64: Х | H64: Х | I64: Х | J64: Х | K64: 0 | L64: 0 | M64: 0 | N64: 0 | O64: 0 | P64: 0 | Q64: Х | R64: Х
A65: Інші поточні видатки | B65: 2800 | C65: 420 | D65: 0 | E65: Х | F65: Х | G65: Х | H65: Х | I65: Х | J65: Х | K65: 0 | L65: 0 | M65: 0 | N65: 0 | O65: 0 | P65: 0 | Q65: Х | R65: Х
A66: Капітальні видатки | B66: 3000 | C66: 430 | D66: =D67+D81 -> 0 | E66: Х | F66: Х | G66: Х | H66: Х | I66: Х | J66: Х | K66: =K67+K81 -> 0 | L66: 0 | M66: 0 | N66: 0 | O66: 0 | P66: 0 | Q66: Х | R66: Х
A67: Придбання основного капіталу | B67: 3100 | C67: 440 | D67: =D68+D69+D72+D75+D79+D80 -> 0 | E67: Х | F67: Х | G67: Х | H67: Х | I67: Х | J67: Х | K67: =K68+K69+K72+K75+K79+K80 -> 0 | L67: 0 | M67: 0 | N67: 0 | O67: 0 | P67: 0 | Q67: Х | R67: Х
A68: Придбання обладнання і предметів довгострокового користування | B68: 3110 | C68: 450 | D68: 0 | E68: Х | F68: Х | G68: Х | H68: Х | I68: Х | J68: Х | K68: 0 | L68: 0 | M68: 0 | N68: 0 | O68: 0 | P68: 0 | Q68: Х | R68: Х
A69: Капітальне будівництво (придбання) | B69: 3120 | C69: 460 | D69: =SUM(D70:D71) -> 0 | E69: Х | F69: Х | G69: Х | H69: Х | I69: Х | J69: Х | K69: =SUM(K70:K71) -> 0 | L69: 0 | M69: 0 | N69: 0 | O69: 0 | P69: 0 | Q69: Х | R69: Х
A70: Капітальне будівництво (придбання) житла | B70: 3121 | C70: 470 | D70: 0 | E70: Х | F70: Х | G70: Х | H70: Х | I70: Х | J70: Х | K70: 0 | L70: 0 | M70: 0 | N70: 0 | O70: 0 | P70: 0 | Q70: Х | R70: Х
A71: Капітальне будівництво (придбання) інших об’єктів | B71: 3122 | C71: 480 | D71: 0 | E71: Х | F71: Х | G71: Х | H71: Х | I71: Х | J71: Х | K71: 0 | L71: 0 | M71: 0 | N71: 0 | O71: 0 | P71: 0 | Q71: Х | R71: Х
A72: Капітальний ремонт | B72: 3130 | C72: 490 | D72: =SUM(D73:D74) -> 0 | E72: Х | F72: Х | G72: Х | H72: Х | I72: Х | J72: Х | K72: =SUM(K73:K74) -> 0 | L72: 0 | M72: 0 | N72: 0 | O72: 0 | P72: 0 | Q72: Х | R72: Х
A73: Капітальний ремонт житлового фонду (приміщень) | B73: 3131 | C73: 500 | D73: 0 | E73: Х | F73: Х | G73: Х | H73: Х | I73: Х | J73: Х | K73: 0 | L73: 0 | M73: 0 | N73: 0 | O73: 0 | P73: 0 | Q73: Х | R73: Х
A74: Капітальний ремонт інших об’єктів | B74: 3132 | C74: 510 | D74: 0 | E74: Х | F74: Х | G74: Х | H74: Х | I74: Х | J74: Х | K74: 0 | L74: 0 | M74: 0 | N74: 0 | O74: 0 | P74: 0 | Q74: Х | R74: Х
A75: Реконструкція та реставрація | B75: 3140 | C75: 520 | D75: =SUM(D76:D78) -> 0 | E75: Х | F75: Х | G75: Х | H75: Х | I75: Х | J75: Х | K75: =SUM(K76:K78) -> 0 | L75: 0 | M75: 0 | N75: 0 | O75: 0 | P75: 0 | Q75: Х | R75: Х
A76: Реконструкція житлового фонду (приміщень) | B76: 3141 | C76: 530 | D76: 0 | E76: Х | F76: Х | G76: Х | H76: Х | I76: Х | J76: Х | K76: 0 | L76: 0 | M76: 0 | N76: 0 | O76: 0 | P76: 0 | Q76: Х | R76: Х
A77: Реконструкція та реставрація інших об’єктів | B77: 3142 | C77: 540 | D77: 0 | E77: Х | F77: Х | G77: Х | H77: Х | I77: Х | J77: Х | K77: 0 | L77: 0 | M77: 0 | N77: 0 | O77: 0 | P77: 0 | Q77: Х | R77: Х
A78: Реставрація пам’яток культури, історії та архітектури | B78: 3143 | C78: 550 | D78: 0 | E78: Х | F78: Х | G78: Х | H78: Х | I78: Х | J78: Х | K78: 0 | L78: 0 | M78: 0 | N78: 0 | O78: 0 | P78: 0 | Q78: Х | R78: Х
A79: Створення державних запасів і резервів | B79: 3150 | C79: 560 | D79: 0 | E79: Х | F79: Х | G79: Х | H79: Х | I79: Х | J79: Х | K79: 0 | L79: 0 | M79: 0 | N79: 0 | O79: 0 | P79: 0 | Q79: Х | R79: Х
A80: Придбання землі та нематеріальних активів | B80: 3160 | C80: 570 | D80: 0 | E80: Х | F80: Х | G80: Х | H80: Х | I80: Х | J80: Х | K80: 0 | L80: 0 | M80: 0 | N80: 0 | O80: 0 | P80: 0 | Q80: Х | R80: Х
A81: Капітальні трансферти | B81: 3200 | C81: 580 | D81: =SUM(D82:D85) -> 0 | E81: Х | F81: Х | G81: Х | H81: Х | I81: Х | J81: Х | K81: =SUM(K82:K85) -> 0 | L81: 0 | M81: 0 | N81: 0 | O81: 0 | P81: 0 | Q81: Х | R81: Х
A82: Капітальні трансферти підприємствам (установам, організаціям) | B82: 3210 | C82: 590 | D82: 0 | E82: Х | F82: Х | G82: Х | H82: Х | I82: Х | J82: Х | K82: 0 | L82: 0 | M82: 0 | N82: 0 | O82: 0 | P82: 0 | Q82: Х | R82: Х
A83: Капітальні трансферти органам державного управління інших рівнів | B83: 3220 | C83: 600 | D83: 0 | E83: Х | F83: Х | G83: Х | H83: Х | I83: Х | J83: Х | K83: 0 | L83: 0 | M83: 0 | N83: 0 | O83: 0 | P83: 0 | Q83: Х | R83: Х
A84: Капітальні трансферти урядам іноземних держав та міжнародним організаціям | B84: 3230 | C84: 610 | D84: 0 | E84: Х | F84: Х | G84: Х | H84: Х | I84: Х | J84: Х | K84: 0 | L84: 0 | M84: 0 | N84: 0 | O84: 0 | P84: 0 | Q84: Х | R84: Х
A85: Капітальні трансферти населенню | B85: 3240 | C85: 620 | D85: 0 | E85: Х | F85: Х | G85: Х | H85: Х | I85: Х | J85: Х | K85: 0 | L85: 0 | M85: 0 | N85: 0 | O85: 0 | P85: 0 | Q85: Х | R85: Х
A88: Капітальні трансферти до бюджету розвитку | B88: 2450 | C88: 610 | D88: - | F88: Х | G88: Х | H88: Х | I88: Х | J88: Х | K88: - | N88: - | O88: - | P88: - | R88: Х
A89: Внутрішнє кредитування | B89: 4100 | C89: 620 | D89: Х | F89: Х | G89: Х | H89: Х | I89: Х | J89: Х | K89: Х | N89: Х | O89: Х | P89: Х | R89: Х
A90: Надання внутрішніх кредитів | B90: 4110 | C90: 630 | D90: Х | F90: Х | G90: Х | H90: Х | I90: Х | J90: Х | K90: Х | N90: Х | O90: Х | P90: Х | R90: Х
A91: Надання кредитів органам державного управління інших рівнів | B91: 4111 | C91: 640 | D91: Х | F91: Х | G91: Х | H91: Х | I91: Х | J91: Х | K91: Х | N91: Х | O91: Х | P91: Х | R91: Х
A92: Надання кредитів підприємствам, установам, організаціям | B92: 4112 | C92: 650 | D92: Х | F92: Х | G92: Х | H92: Х | I92: Х | J92: Х | K92: Х | N92: Х | O92: Х | P92: Х | R92: Х
A93: Надання інших внутрішніх кредитів | B93: 4113 | C93: 660 | D93: Х | F93: Х | G93: Х | H93: Х | I93: Х | J93: Х | K93: Х | N93: Х | O93: Х | P93: Х | R93: Х
A94: Повернення внутрішніх кредитів | B94: 4120 | C94: 670 | D94: Х | F94: Х | G94: Х | H94: Х | I94: Х | J94: Х | K94: Х | N94: Х | O94: Х | P94: Х | R94: Х
A95: Повернення кредитів органами державного управління інших рівнів | B95: 4121 | C95: 680 | D95: Х | F95: Х | G95: Х | H95: Х | I95: Х | J95: Х | K95: Х | N95: Х | O95: Х | P95: Х | R95: Х
A96: Повернення кредитів підприємствами, установами, організаціями | B96: 4122 | C96: 690 | D96: Х | F96: Х | G96: Х | H96: Х | I96: Х | J96: Х | K96: Х | N96: Х | O96: Х | P96: Х | R96: Х
A97: Повернення інших внутрішніх кредитів | B97: 4123 | C97: 700 | D97: Х | F97: Х | G97: Х | H97: Х | I97: Х | J97: Х | K97: Х | N97: Х | O97: Х | P97: Х | R97: Х
A98: Зовнішнє кредитування | B98: 4200 | C98: 710 | D98: Х | F98: Х | G98: Х | H98: Х | I98: Х | J98: Х | K98: Х | N98: Х | O98: Х | P98: Х | R98: Х
A99: Надання зовнішніх кредитів | B99: 4210 | C99: 720 | D99: Х | F99: Х | G99: Х | H99: Х | I99: Х | J99: Х | K99: Х | N99: Х | O99: Х | P99: Х | R99: Х
A100: Повернення зовнішніх кредитів | B100: 4220 | C100: 730 | D100: Х | F100: Х | G100: Х | H100: Х | I100: Х | J100: Х | K100: Х | N100: Х | O100: Х | P100: Х | R100: Х
A102: =ЗАПОЛНИТЬ!F30 -> Начальник | H102: =ЗАПОЛНИТЬ!F26 -> Коваль М.С.
D103: (підпис) | H103: (ініціали, прізвище)
A104: =ЗАПОЛНИТЬ!F31 -> Головний бухгалтер | H104: =ЗАПОЛНИТЬ!F28 -> Жук О.С.
A105: =ЗАПОЛНИТЬ!C19 -> 1 квітня 2020 року | D105: (підпис) | H105: (ініціали, прізвище)

Sheet Ф.4.2
I1: Додаток 3 до Порядку складання бюджетної звітності розпорядниками та одержувачами бюджетних коштів, звітності фондами загальнообов’язкового державного соціального і пенсійного страхування (пункт 1 розділу ІІ)
A3: ЗВІТ
A4: про надходження і використання коштів, отриманих за іншими джерелами власних надходжень
A5: =IF([1]ЗАПОЛНИТЬ!$F$7=1,CONCATENATE([1]шапки!A4),CONCATENATE([1]шапки!A4,[1]шапки!C4)) -> (форма № 4-2д, | D5: =IF([1]ЗАПОЛНИТЬ!$F$7=1,[1]шапки!C4,[1]шапки!D4) -> № 4-2м), | E5: =IF([1]ЗАПОЛНИТЬ!$F$7=1,[1]шапки!D4,"") -> 
A6: =CONCATENATE("за ",ЗАПОЛНИТЬ!$B$17," ",ЗАПОЛНИТЬ!$C$17) -> за рік 2020 р.
M8: коди
A9: Установа | B9: =ЗАПОЛНИТЬ!B3 -> Відділ освіти Жовківської РДА (Зарудцівська ЗОШ І-ІІ ст.) | K9: =ЗАПОЛНИТЬ!A13 -> за ЄДРПОУ | M9: =ЗАПОЛНИТЬ!B13 -> 39013038
A10: Територія | B10: =ЗАПОЛНИТЬ!B5 -> 800300, Львівська обл., м.Жовква , вул.Є.Коновальця,4 | K10: =ЗАПОЛНИТЬ!A14 -> за КОАТУУ | M10: =ЗАПОЛНИТЬ!B14 -> 4622700000
A11: Організаційно-правова форма господарювання | B11: =ЗАПОЛНИТЬ!D15 -> Орган державної влади | K11: =ЗАПОЛНИТЬ!A15 -> за КОПФГ | M11: =ЗАПОЛНИТЬ!B15 -> 410
A12: Код та назва відомчої класифікації видатків та кредитування державного бюджету | D12: =ЗАПОЛНИТЬ!H9 -> 0 | E12: =IF(D12>0,VLOOKUP(D12,#REF!,2,FALSE),"") -> 
A13: Код та назва програмної класифікації видатків та кредитування державного бюджету | E13: =IF(D13>0,VLOOKUP(D13,#REF!,2,FALSE),"") -> 
A14: Код та назва типової відомчої класифікації видатків та кредитування місцевих бюджетів | D14: =ЗАПОЛНИТЬ!H10 -> 6 | E14: =ЗАПОЛНИТЬ!I10 -> Орган з питань освіти і науки
A15: Код та назва програмної класифікації видатків та кредитування місцевих бюджетів (код та назва Типової програмної класифікації видатків та кредитування місцевих бюджетів / Тимчасової класифікації видатків та кредитування для бюджетів місцевого самоврядування, які не застосовують програмно-цільового методу) | D15: 0611020 | E15: школи
A16: Періодичність: місячна, квартальна, річна.
A17: Одиниця виміру: грн, коп.
A18: Показники | B18: КЕКВ та/або ККК | C18: Код рядка | D18: Затверджено на звітний рік | E18: Залишок на початок звітного року | G18: Перераховано залишок | H18: Нараховано доходів за звітний період (рік) | I18: Надійшло коштів за звітний період (рік) | J18: Касові за звітний період (рік) | L18: Фактичні за звітний період (рік) | M18: Залишок на кінець звітного періоду (року)
E20: усього | F20: у тому числі на рахунках в установах банків | J20: усього | K20: у тому числі перераховані з рахунків в установах банків | M20: усього | N20: у тому числі на рахунках в установах банків
A21: 1 | B21: 2 | C21: 3 | D21: 4 | E21: 5 | F21: 6 | G21: 7 | H21: 8 | I21: 8 | J21: 9 | K21: 10 | L21: 12 | M21: 11 | N21: 12
A22: Надходження коштів – усього | B22: Х | C22: 010 | D22: =SUM(D23:D27) -> 0 | E22: 0 | F22: 0 | G22: 0 | H22: =H25 -> 0 | I22: =SUM(I23:I26) -> 0 | J22: Х | K22: Х | L22: Х | M22: =E22-F22-G22+I22-J28-K28 -> 0 | N22: 0
A23: Від отриманих благодійних внесків, грантів та дарунків | B23: Х | C23: 020 | D23: 0 | E23: Х | F23: Х | G23: Х | H23: Х | J23: Х | K23: Х | L23: Х | M23: Х | N23: Х
A24: Від підприємств, організацій, фізичних осіб та від інших бюджетних установ для виконання цільових заходів, у тому числі заходів з відчуження для суспільних потреб земельних ділянок та розміщення на них інших об’єктів нерухомого майна, що перебувають у приватній власності фізичних або юридичних осіб | B24: Х | C24: 030 | D24: 0 | E24: Х | F24: Х | G24: Х | H24: Х | I24: 0 | J24: Х | K24: Х | L24: Х | M24: Х | N24: Х
A25: Вищих та професійно-технічних навчальних закладів від розміщення на депозитах тимчасово вільних бюджетних коштів, отриманих за надання платних послуг, якщо таким закладам законом надано відповідне право; державних і комунальних вищих навчальних закладів, державних наукових установ, державних і комунальних закладів культури як відсотків, нарахованих на залишок коштів на поточних рахунках, відкритих у банках державного сектору для розміщення власних надходжень, отриманих як плата за послуги, що надаються ними згідно з основною діяльністю, благодійні внески та гранти | B25: Х | C25: 040 | D25: 0 | E25: Х | F25: Х | G25: Х | H25: 0 | I25: 0 | J25: Х | K25: Х | L25: Х | M25: Х | N25: Х
A26: Від реалізації майнових прав на фільми, вихідні матеріали фільмів та фільмокопій, створені за бюджетні кошти за державним замовленням або на умовах фінансової підтримки | B26: Х | C26: 050 | D26: 0 | E26: Х | F26: Х | G26: Х | H26: Х | I26: 0 | J26: Х | K26: Х | L26: Х | M26: Х | N26: Х
A27: Фінансування | B27: Х | C27: 060 | D27: 0 | E27: Х | F27: Х | G27: Х | H27: Х | I27: Х | J27: Х | K27: Х | L27: Х | M27: Х | N27: Х
A28: Видатки та надання кредитів- усього | B28: Х | C28: 070 | D28: =D30+D65+D88+D97 -> 0 | E28: Х | F28: Х | G28: Х | H28: Х | I28: Х | J28: =J30+J65+J88+J97 -> 0 | K28: =K30+K65+K88+K97 -> 0 | L28: =L30+L65+L88+L97 -> 0 | M28: Х | N28: Х
A29: у тому числі:
A30: Поточні видатки | B30: 2000 | C30: 080 | D30: =D31+D36+D53+D56+D60+D64 -> 0 | E30: Х | F30: Х | G30: Х | H30: Х | I30: Х | J30: =J31+J36+J53+J56+J60+J64 -> 0 | K30: =K31+K36+K53+K56+K60+K64 -> 0 | L30: =L31+L36+L53+L56+L60+L64 -> 0 | M30: Х | N30: Х
A31: Оплата праці і нарахування на заробітну плату | B31: 2100 | C31: 090 | D31: =D32+D35 -> 0 | E31: Х | F31: Х | G31: Х | H31: Х | I31: Х | J31: =J32+J35 -> 0 | K31: =K32+K35 -> 0 | L31: =L32+L35 -> 0 | M31: Х | N31: Х
A32: Оплата праці | B32: 2110 | C32: 100 | D32: =SUM(D33:D34) -> 0 | E32: Х | F32: Х | G32: Х | H32: Х | I32: Х | J32: =SUM(J33:J34) -> 0 | K32: =SUM(K33:K34) -> 0 | L32: =SUM(L33:L34) -> 0 | M32: Х | N32: Х
A33: Заробітна плата | B33: 2111 | C33: 110 | D33: 0 | E33: Х | F33: Х | G33: Х | H33: Х | I33: Х | J33: 0 | K33: 0 | L33: 0 | M33: Х | N33: Х
A34: Грошове забезпечення військовослужбовців | B34: 2112 | C34: 120 | D34: 0 | E34: Х | F34: Х | G34: Х | H34: Х | I34: Х | J34: 0 | K34: 0 | L34: 0 | M34: Х | N34: Х
A35: Нарахування на оплату праці | B35: 2120 | C35: 130 | D35: 0 | E35: Х | F35: Х | G35: Х | H35: Х | I35: Х | J35: 0 | K35: 0 | L35: 0 | M35: Х | N35: Х
A36: Використання товарів і послуг | B36: 2200 | C36: 140 | D36: =SUM(D37:D43)+D50 -> 0 | E36: Х | F36: Х | G36: Х | H36: Х | I36: Х | J36: =SUM(J37:J43)+J50 -> 0 | K36: =SUM(K37:K43)+K50 -> 0 | L36: =SUM(L37:L43)+L50 -> 0 | M36: Х | N36: Х
A37: Предмети, матеріали, обладнання та інвентар | B37: 2210 | C37: 150 | E37: Х | F37: Х | G37: Х | H37: Х | I37: Х | K37: 0 | L37: 0 | M37: Х | N37: Х
A38: Медикаменти та перев’язувальні матеріали | B38: 2220 | C38: 160 | D38: 0 | E38: Х | F38: Х | G38: Х | H38: Х | I38: Х | J38: 0 | K38: 0 | L38: 0 | M38: Х | N38: Х
A39: Продукти харчування | B39: 2230 | C39: 170 | D39: 0 | E39: Х | F39: Х | G39: Х | H39: Х | I39: Х | J39: 0 | K39: 0 | L39: 0 | M39: Х | N39: Х
A40: Оплата послуг (крім комунальних) | B40: 2240 | C40: 180 | D40: 0 | E40: Х | F40: Х | G40: Х | H40: Х | I40: Х | J40: 0 | K40: 0 | L40: 0 | M40: Х | N40: Х
A41: Видатки на відрядження | B41: 2250 | C41: 190 | D41: 0 | E41: Х | F41: Х | G41: Х | H41: Х | I41: Х | J41: 0 | K41: 0 | L41: 0 | M41: Х | N41: Х
A42: Видатки та заходи спеціального призначення | B42: 2260 | C42: 200 | D42: 0 | E42: Х | F42: Х | G42: Х | H42: Х | I42: Х | J42: 0 | K42: 0 | L42: 0 | M42: Х | N42: Х
A43: Оплата комунальних послуг та енергоносіїв | B43: 2270 | C43: 210 | D43: =SUM(D44:D49) -> 0 | E43: Х | F43: Х | G43: Х | H43: Х | I43: Х | J43: =SUM(J44:J49) -> 0 | K43: =SUM(K44:K49) -> 0 | L43: =SUM(L44:L49) -> 0 | M43: Х | N43: Х
A44: Оплата теплопостачання | B44: 2271 | C44: 220 | D44: 0 | E44: Х | F44: Х | G44: Х | H44: Х | I44: Х | J44: 0 | K44: 0 | L44: 0 | M44: Х | N44: Х
A45: Оплата водопостачання та водовідведення | B45: 2272 | C45: 230 | D45: 0 | E45: Х | F45: Х | G45: Х | H45: Х | I45: Х | J45: 0 | K45: 0 | L45: 0 | M45: Х | N45: Х
A46: Оплата електроенергії | B46: 2273 | C46: 240 | D46: 0 | E46: Х | F46: Х | G46: Х | H46: Х | I46: Х | J46: 0 | K46: 0 | L46: 0 | M46: Х | N46: Х
A47: Оплата природного газу | B47: 2274 | C47: 250 | D47: 0 | E47: Х | F47: Х | G47: Х | H47: Х | I47: Х | J47: 0 | K47: 0 | L47: 0 | M47: Х | N47: Х
A48: Оплата інших енергоносіїв | B48: 2275 | C48: 260 | D48: 0 | E48: Х | F48: Х | G48: Х | H48: Х | I48: Х | J48: 0 | K48: 0 | L48: 0 | M48: Х | N48: Х
A49: Оплата енргосервісу | B49: 2276 | C49: 270 | D49: 0 | E49: Х | F49: Х | G49: Х | H49: Х | I49: Х | J49: 0 | K49: 0 | L49: 0 | M49: Х | N49: Х
A50: Дослідження і розробки, окремі заходи по реалізації державних (регіональних) програм | B50: 2280 | C50: 280 | D50: =SUM(D51:D52) -> 0 | E50: Х | F50: Х | G50: Х | H50: Х | I50: Х | J50: =SUM(J51:J52) -> 0 | K50: =SUM(K51:K52) -> 0 | L50: =SUM(L51:L52) -> 0 | M50: Х | N50: Х
A51: Дослідження і розробки, окремі заходи розвитку по реалізації державних (регіональних) програм | B51: 2281 | C51: 290 | D51: 0 | E51: Х | F51: Х | G51: Х | H51: Х | I51: Х | J51: 0 | K51: 0 | L51: 0 | M51: Х | N51: Х
A52: Окремі заходи по реалізації державних (регіональних) програм, не віднесені до заходів розвитку | B52: 2282 | C52: 300 | D52: 0 | E52: Х | F52: Х | G52: Х | H52: Х | I52: Х | J52: 0 | K52: 0 | L52: 0 | M52: Х | N52: Х
A53: Обслуговування боргових зобов’язань | B53: 2400 | C53: 310 | D53: =SUM(D54:D55) -> 0 | E53: Х | F53: Х | G53: Х | H53: Х | I53: Х | J53: =SUM(J54:J55) -> 0 | K53: =SUM(K54:K55) -> 0 | L53: =SUM(L54:L55) -> 0 | M53: Х | N53: Х
A54: Обслуговування внутрішніх боргових зобов’язань | B54: 2410 | C54: 320 | D54: 0 | E54: Х | F54: Х | G54: Х | H54: Х | I54: Х | J54: 0 | K54: 0 | L54: 0 | M54: Х | N54: Х
A55: Обслуговування зовнішніх боргових зобов’язань | B55: 2420 | C55: 330 | D55: 0 | E55: Х | F55: Х | G55: Х | H55: Х | I55: Х | J55: 0 | K55: 0 | L55: 0 | M55: Х | N55: Х
A56: Поточні трансферти | B56: 2600 | C56: 340 | D56: =SUM(D57:D59) -> 0 | E56: Х | F56: Х | G56: Х | H56: Х | I56: Х | J56: =SUM(J57:J59) -> 0 | K56: =SUM(K57:K59) -> 0 | L56: =SUM(L57:L59) -> 0 | M56: Х | N56: Х
A57: Субсидії та поточні трансферти підприємствам (установам, організаціям) | B57: 2610 | C57: 350 | D57: 0 | E57: Х | F57: Х | G57: Х | H57: Х | I57: Х | J57: 0 | K57: 0 | L57: 0 | M57: Х | N57: Х
A58: Поточні трансферти органам державного управління інших рівнів | B58: 2620 | C58: 360 | D58: 0 | E58: Х | F58: Х | G58: Х | H58: Х | I58: Х | J58: 0 | K58: 0 | L58: 0 | M58: Х | N58: Х
A59: Поточні трансферти урядам іноземних держав та міжнародним організаціям | B59: 2630 | C59: 370 | D59: 0 | E59: Х | F59: Х | G59: Х | H59: Х | I59: Х | J59: 0 | K59: 0 | L59: 0 | M59: Х | N59: Х
A60: Соціальне забезпечення | B60: 2700 | C60: 380 | D60: =SUM(D61:D63) -> 0 | E60: Х | F60: Х | G60: Х | H60: Х | I60: Х | J60: =SUM(J61:J63) -> 0 | K60: =SUM(K61:K63) -> 0 | L60: =SUM(L61:L63) -> 0 | M60: Х | N60: Х
A61: Виплата пенсій і допомоги | B61: 2710 | C61: 390 | D61: 0 | E61: Х | F61: Х | G61: Х | H61: Х | I61: Х | J61: 0 | K61: 0 | L61: 0 | M61: Х | N61: Х
A62: Стипендії | B62: 2720 | C62: 400 | D62: 0 | E62: Х | F62: Х | G62: Х | H62: Х | I62: Х | J62: 0 | K62: 0 | L62: 0 | M62: Х | N62: Х
A63: Інші виплати населенню | B63: 2730 | C63: 410 | D63: 0 | E63: Х | F63: Х | G63: Х | H63: Х | I63: Х | J63: 0 | K63: 0 | L63: 0 | M63: Х | N63: Х
A64: Інші поточні видатки | B64: 2800 | C64: 420 | D64: 0 | E64: Х | F64: Х | G64: Х | H64: Х | I64: Х | J64: 0 | K64: 0 | L64: 0 | M64: Х | N64: Х
A65: Капітальні видатки | B65: 3000 | C65: 430 | D65: =D66+D80 -> 0 | E65: Х | F65: Х | G65: Х | H65: Х | I65: Х | J65: =J66+J80 -> 0 | K65: =K66+K80 -> 0 | L65: =L66+L80 -> 0 | M65: Х | N65: Х
A66: Придбання основного капіталу | B66: 3100 | C66: 440 | D66: =D67+D68+D71+D74+D78+D79 -> 0 | E66: Х | F66: Х | G66: Х | H66: Х | I66: Х | J66: =J67+J68+J71+J74+J78+J79 -> 0 | K66: =K67+K68+K71+K74+K78+K79 -> 0 | L66: =L67+L68+L71+L74+L78+L79 -> 0 | M66: Х | N66: Х
A67: Придбання обладнання і предметів довгострокового користування | B67: 3110 | C67: 450 | D67: 0 | E67: Х | F67: Х | G67: Х | H67: Х | I67: Х | J67: 0 | K67: 0 | L67: 0 | M67: Х | N67: Х
A68: Капітальне будівництво (придбання) | B68: 3120 | C68: 460 | D68: =SUM(D69:D70) -> 0 | E68: Х | F68: Х | G68: Х | H68: Х | I68: Х | J68: =SUM(J69:J70) -> 0 | K68: =SUM(K69:K70) -> 0 | L68: =SUM(L69:L70) -> 0 | M68: Х | N68: Х
A69: Капітальне будівництво (придбання) житла | B69: 3121 | C69: 470 | D69: 0 | E69: Х | F69: Х | G69: Х | H69: Х | I69: Х | J69: 0 | K69: 0 | L69: 0 | M69: Х | N69: Х
A70: Капітальне будівництво (придбання) інших об’єктів | B70: 3122 | C70: 480 | D70: 0 | E70: Х | F70: Х | G70: Х | H70: Х | I70: Х | J70: 0 | K70: 0 | L70: 0 | M70: Х | N70: Х
A71: Капітальний ремонт | B71: 3130 | C71: 490 | D71: =SUM(D72:D73) -> 0 | E71: Х | F71: Х | G71: Х | H71: Х | I71: Х | J71: =SUM(J72:J73) -> 0 | K71: =SUM(K72:K73) -> 0 | L71: =SUM(L72:L73) -> 0 | M71: Х | N71: Х
A72: Капітальний ремонт житлового фонду (приміщень) | B72: 3131 | C72: 500 | D72: 0 | E72: Х | F72: Х | G72: Х | H72: Х | I72: Х | J72: 0 | K72: 0 | L72: 0 | M72: Х | N72: Х
A73: Капітальний ремонт інших об’єктів | B73: 3132 | C73: 510 | D73: 0 | E73: Х | F73: Х | G73: Х | H73: Х | I73: Х | J73: 0 | K73: 0 | L73: 0 | M73: Х | N73: Х
A74: Реконструкція та реставрація | B74: 3140 | C74: 520 | D74: =SUM(D75:D77) -> 0 | E74: Х | F74: Х | G74: Х | H74: Х | I74: Х | J74: =SUM(J75:J77) -> 0 | K74: =SUM(K75:K77) -> 0 | L74: =SUM(L75:L77) -> 0 | M74: Х | N74: Х
A75: Реконструкція житлового фонду (приміщень) | B75: 3141 | C75: 530 | D75: 0 | E75: Х | F75: Х | G75: Х | H75: Х | I75: Х | J75: 0 | K75: 0 | L75: 0 | M75: Х | N75: Х
A76: Реконструкція та реставрація інших об’єктів | B76: 3142 | C76: 540 | D76: 0 | E76: Х | F76: Х | G76: Х | H76: Х | I76: Х | J76: 0 | K76: 0 | L76: 0 | M76: Х | N76: Х
A77: Реставрація пам’яток культури, історії та архітектури | B77: 3143 | C77: 550 | D77: 0 | E77: Х | F77: Х | G77: Х | H77: Х | I77: Х | J77: 0 | K77: 0 | L77: 0 | M77: Х | N77: Х
A78: Створення державних запасів і резервів | B78: 3150 | C78: 560 | D78: 0 | E78: Х | F78: Х | G78: Х | H78: Х | I78: Х | J78: 0 | K78: 0 | L78: 0 | M78: Х | N78: Х
A79: Придбання землі та нематеріальних активів | B79: 3160 | C79: 570 | D79: 0 | E79: Х | F79: Х | G79: Х | H79: Х | I79: Х | J79: 0 | K79: 0 | L79: 0 | M79: Х | N79: Х
A80: Капітальні трансферти | B80: 3200 | C80: 580 | D80: =SUM(D81:D83) -> 0 | E80: Х | F80: Х | G80: Х | H80: Х | I80: Х | J80: =SUM(J81:J83) -> 0 | K80: =SUM(K81:K83) -> 0 | L80: =SUM(L81:L83) -> 0 | M80: Х | N80: Х
A81: Капітальні трансферти підприємствам (установам, організаціям) | B81: 3210 | C81: 590 | D81: 0 | E81: Х | F81: Х | G81: Х | H81: Х | I81: Х | J81: 0 | K81: 0 | L81: 0 | M81: Х | N81: Х
A82: Капітальні трансферти органам державного управління інших рівнів | B82: 3220 | C82: 600 | D82: 0 | E82: Х | F82: Х | G82: Х | H82: Х | I82: Х | J82: 0 | K82: 0 | L82: 0 | M82: Х | N82: Х
A83: Капітальні трансферти урядам іноземних держав та міжнародним організаціям | B83: 3230 | C83: 610 | D83: 0 | E83: Х | F83: Х | G83: Х | H83: Х | I83: Х | J83: 0 | K83: 0 | L83: 0 | M83: Х | N83: Х
A84: Капітальні трансферти населенню | B84: 3240 | C84: 620 | D84: 0 | E84: Х | F84: Х | G84: Х | H84: Х | I84: Х | J84: 0 | K84: 0 | L84: 0 | M84: Х | N84: Х
C85: 630
C86: 640
C87: 650
A88: Внутрішнє кредитування | B88: 4100 | C88: 630 | D88: =D89 -> 0 | E88: Х | F88: Х | G88: Х | H88: Х | I88: Х | J88: =J89 -> 0 | K88: =K89 -> 0 | L88: =L89 -> 0 | M88: Х | N88: Х
A89: Надання внутрішніх кредитів | B89: 4110 | C89: 640 | D89: =SUM(D90:D92) -> 0 | E89: Х | F89: Х | G89: Х | H89: Х | I89: Х | J89: =SUM(J90:J92) -> 0 | K89: =SUM(K90:K92) -> 0 | L89: =SUM(L90:L92) -> 0 | M89: Х | N89: Х
A90: Надання кредитів органам державного управління інших рівнів | B90: 4111 | C90: 650 | D90: 0 | E90: Х | F90: Х | G90: Х | H90: Х | I90: Х | J90: 0 | K90: 0 | L90: 0 | M90: Х | N90: Х
A91: Надання кредитів підприємствам, установам, організаціям | B91: 4112 | C91: 660 | D91: 0 | E91: Х | F91: Х | G91: Х | H91: Х | I91: Х | J91: 0 | K91: 0 | L91: 0 | M91: Х | N91: Х
A92: Надання інших внутрішніх кредитів | B92: 4113 | C92: 670 | D92: 0 | E92: Х | F92: Х | G92: Х | H92: Х | I92: Х | J92: 0 | K92: 0 | L92: 0 | M92: Х | N92: Х
J93: 0 | K93: 0 | L93: 0
J94: 0 | K94: 0 | L94: 0
J95: 0 | K95: 0 | L95: 0
J96: 0 | K96: 0 | L96: 0
A97: Зовнішнє кредитування | B97: 4200 | C97: 680 | D97: =D98 -> 0 | E97: Х | F97: Х | G97: Х | H97: Х | I97: Х | J97: =J98 -> 0 | K97: =K98 -> 0 | L97: =L98 -> 0 | M97: Х | N97: Х
A98: Надання зовнішніх кредитів | B98: 4210 | C98: 690 | D98: 0 | E98: Х | F98: Х | G98: Х | H98: Х | I98: Х | J98: 0 | K98: 0 | L98: 0 | M98: Х | N98: Х
A99: Повернення зовнішніх кредитів | B99: 4220 | C99: 710 | D99: Х | E99: Х | G99: Х | I99: Х | J99: Х | L99: Х | M99: Х
A101: =ЗАПОЛНИТЬ!F30 -> Начальник | E101: =ЗАПОЛНИТЬ!F26 -> Коваль М.С.
B102: (підпис) | E102: (ініціали, прізвище)
A103: =ЗАПОЛНИТЬ!F31 -> Головний бухгалтер | E103: =ЗАПОЛНИТЬ!F28 -> Жук О.С.
B104: (підпис) | E104: (ініціали, прізвище)
A105: =ЗАПОЛНИТЬ!C19 -> 1 квітня 2020 року

Sheet Ф.4.3
I1: Додаток 4 до Порядку складання бюджетної звітності розпорядниками та одержувачами бюджетних коштів, звітності фондами загальнообов’язкового державного соціального і пенсійного страхування (пункт 1 розділу ІІ)
A4: ЗВІТ
A5: =IF([1]ЗАПОЛНИТЬ!$F$7=1,CONCATENATE([1]шапки!A5),CONCATENATE([1]шапки!A5,[1]шапки!C5)) -> про надходження і використання інших надходжень спеціального фонду (форма№ 4-3д, | I5: =IF([1]ЗАПОЛНИТЬ!$F$7=1,[1]шапки!C5,[1]шапки!D5) -> № 4-3м) | J5: =IF([1]ЗАПОЛНИТЬ!$F$7=1,[1]шапки!D5,"") -> 
A6: =CONCATENATE("за ",ЗАПОЛНИТЬ!$B$17," ",ЗАПОЛНИТЬ!$C$17) -> за рік 2020 р.
M8: коди
A9: Установа | B9: =ЗАПОЛНИТЬ!B3 -> Відділ освіти Жовківської РДА (Зарудцівська ЗОШ І-ІІ ст.) | K9: =ЗАПОЛНИТЬ!A13 -> за ЄДРПОУ | M9: =ЗАПОЛНИТЬ!B13 -> 39013038
A10: Територія | B10: =ЗАПОЛНИТЬ!B5 -> 800300, Львівська обл., м.Жовква , вул.Є.Коновальця,4 | K10: =ЗАПОЛНИТЬ!A14 -> за КОАТУУ | M10: =ЗАПОЛНИТЬ!B14 -> 4622700000
A11: Організаційно-правова форма господарювання | B11: =ЗАПОЛНИТЬ!D15 -> Орган державної влади | K11: =ЗАПОЛНИТЬ!A15 -> за КОПФГ | M11: =ЗАПОЛНИТЬ!B15 -> 410
A12: Код та назва відомчої класифікації видатків та кредитування державного бюджету | D12: =ЗАПОЛНИТЬ!H9 -> 0 | E12: =IF(D12>0,VLOOKUP(D12,#REF!,2,FALSE),"") -> 
A13: Код та назва програмної класифікації видатків та кредитування державного бюджету | E13: =IF(D13>0,VLOOKUP(D13,#REF!,2,FALSE),"") -> 
A14: Код та назва типової відомчої класифікації видатків та кредитування місцевих бюджетів | D14: =ЗАПОЛНИТЬ!H10 -> 6 | E14: =ЗАПОЛНИТЬ!I10 -> Орган з питань освіти і науки
A15: Код та назва програмної класифікації видатків та кредитування місцевих бюджетів (код та назва Типової програмної класифікації видатків та кредитування місцевих бюджетів / Тимчасової класифікації видатків та кредитування для бюджетів місцевого самоврядування, які не застосовують програмно-цільового методу)
A16: Періодичність: місячна, квартальна, річна
A17: Одиниця виміру: грн, коп.
A18: Показники | B18: КЕКВ та/або ККК | C18: Код рядка | D18: Затверджено на звітний рік | E18: Затверджено на звітний період (рік)1 | F18: Залишок на початок звітного року | H18: Перера-ховано залишок | I18: Надійшло коштів за звітний період (рік) | J18: Касові за звітний період (рік) | L18: Фактичні за звітний період (рік) | M18: Залишок на кінець звітного періоду (року)
F19: усього | G19: у тому числі на рахунках в установах банків | J19: усього | K19: у тому числі перера-ховані з рахунків в установах банків | M19: усього | N19: у тому числі на рахунках в установах банків
A21: 1 | B21: 2 | C21: 3 | D21: 4 | E21: 5 | F21: 6 | G21: 7 | H21: 8 | I21: 9 | J21: 10 | K21: 11 | L21: 12 | M21: 13 | N21: 14
A22: Видатки та надання кредитів - усього | B22: Х | C22: 010 | D22: =D24+D59+D79+D84 -> 0 | E22: =E26+E29+E32+E33+E37+E45+E46+E86+E54 -> 0 | F22: =F24+F59+F79+F84 -> 0 | G22: 0 | H22: 0 | I22: 0 | J22: 0 | K22: 0 | L22: 0 | M22: =F22-H22+I22-J22 -> 0 | N22: =N24+N59+N79+N84 -> 0
A23: у тому числі:
A24: Поточні видатки | B24: 2000 | C24: 020 | D24: =D25+D30+D47+D50+D54+D58 -> 0 | E24: 0 | F24: =F25+F30+F47+F50+F54+F58 -> 0 | G24: =G25+G30+G47+G50+G54+G58 -> 0 | H24: 0 | I24: 0 | J24: 0 | K24: =K25+K30+K47+K50+K54+K58 -> 0 | L24: =L25+L30+L47+L50+L54+L58 -> 0 | M24: =F24-H24+I24-J24 -> 0 | N24: =N25+N30+N47+N50+N54+N58 -> 0
A25: Оплата праці і нарахування на заробітну плату | B25: 2100 | C25: 030 | D25: =D26+D29 -> 0 | E25: 0 | F25: =F26+F29 -> 0 | G25: 0 | H25: 0 | I25: 0 | J25: 0 | K25: 0 | L25: 0 | M25: =F25-H25+I25-J25 -> 0 | N25: =N26+N29 -> 0
A26: Оплата праці | B26: 2110 | C26: 040 | D26: =SUM(D27:D28) -> 0 | E26: 0 | F26: =SUM(F27:F28) -> 0 | G26: =SUM(G27:G28) -> 0 | H26: 0 | I26: 0 | J26: 0 | K26: =SUM(K27:K28) -> 0 | L26: 0 | M26: 0 | N26: =SUM(N27:N28) -> 0
A27: Заробітна плата | B27: 2111 | C27: 050 | D27: 0 | E27: 0 | F27: 0 | G27: 0 | H27: 0 | I27: 0 | J27: 0 | K27: 0 | L27: 0 | M27: 0 | N27: 0
A28: Грошове забезпечення військовослужбовців | B28: 2112 | C28: 060 | D28: 0 | E28: 0 | F28: 0 | G28: 0 | H28: 0 | I28: 0 | J28: 0 | K28: 0 | L28: 0 | M28: 0 | N28: 0
A29: Нарахування на оплату праці | B29: 2120 | C29: 070 | D29: 0 | E29: 0 | F29: 0 | G29: 0 | H29: 0 | I29: 0 | J29: 0 | K29: 0 | L29: 0 | M29: 0 | N29: 0
A30: Використання товарів і послуг | B30: 2200 | C30: 080 | D30: =SUM(D31:D37)+D44 -> 0 | E30: 0 | F30: =SUM(F31:F37)+F44 -> 0 | G30: 0 | H30: 0 | I30: 0 | J30: 0 | K30: 0 | L30: 0 | M30: 0 | N30: =SUM(N31:N37)+N44 -> 0
A31: Предмети, матеріали, обладнання та інвентар | B31: 2210 | C31: 090 | D31: 0 | E31: 0 | F31: 0 | G31: 0 | H31: 0 | I31: 0 | J31: 0 | K31: 0 | L31: 0 | M31: 0 | N31: 0
A32: Медикаменти та перев’язувальні матеріали | B32: 2220 | C32: 100 | D32: 0 | E32: 0 | F32: 0 | G32: 0 | H32: 0 | I32: 0 | J32: 0 | K32: 0 | L32: 0 | M32: 0 | N32: 0
A33: Продукти харчування | B33: 2230 | C33: 110 | D33: 0 | E33: 0 | F33: 0 | G33: 0 | H33: 0 | I33: 0 | J33: 0 | K33: 0 | L33: 0 | M33: 0 | N33: 0
A34: Оплата послуг (крім комунальних) | B34: 2240 | C34: 120 | D34: 0 | E34: 0 | F34: 0 | G34: 0 | H34: 0 | I34: 0 | J34: 0 | K34: 0 | L34: 0 | M34: 0 | N34: 0
A35: Видатки на відрядження | B35: 2250 | C35: 130 | D35: 0 | E35: 0 | F35: 0 | G35: 0 | H35: 0 | I35: 0 | J35: 0 | K35: 0 | L35: 0 | M35: 0 | N35: 0
A36: Видатки та заходи спеціального призначення | B36: 2260 | C36: 140 | D36: 0 | E36: 0 | F36: 0 | G36: 0 | H36: 0 | I36: 0 | J36: 0 | K36: 0 | L36: 0 | M36: 0 | N36: 0
A37: Оплата комунальних послуг та енергоносіїв | B37: 2270 | C37: 150 | D37: =SUM(D38:D43) -> 0 | E37: 0 | F37: =SUM(F38:F43) -> 0 | G37: 0 | H37: 0 | I37: 0 | J37: 0 | K37: 0 | L37: 0 | M37: 0 | N37: =SUM(N38:N43) -> 0
A38: Оплата теплопостачання | B38: 2271 | C38: 160 | D38: 0 | E38: 0 | F38: 0 | G38: 0 | H38: 0 | I38: 0 | J38: 0 | K38: 0 | L38: 0 | M38: 0 | N38: 0
A39: Оплата водопостачання та водовідведення | B39: 2272 | C39: 170 | D39: 0 | E39: 0 | F39: 0 | G39: 0 | H39: 0 | I39: 0 | J39: 0 | K39: 0 | L39: 0 | M39: 0 | N39: 0
A40: Оплата електроенергії | B40: 2273 | C40: 180 | D40: 0 | E40: 0 | F40: 0 | G40: 0 | H40: 0 | I40: 0 | J40: 0 | K40: 0 | L40: 0 | M40: 0 | N40: 0
A41: Оплата природного газу | B41: 2274 | C41: 190 | D41: 0 | E41: 0 | F41: 0 | G41: 0 | H41: 0 | I41: 0 | J41: 0 | K41: 0 | L41: 0 | M41: 0 | N41: 0
A42: Оплата інших енергоносіїв | B42: 2275 | C42: 200 | D42: 0 | E42: 0 | F42: 0 | G42: 0 | H42: 0 | I42: 0 | J42: 0 | K42: 0 | L42: 0 | M42: 0 | N42: 0
A43: Оплата енергосервісу | B43: 2276 | C43: 210 | D43: 0 | E43: 0 | F43: 0 | G43: 0 | H43: 0 | I43: 0 | J43: 0 | K43: 0 | L43: 0 | M43: 0 | N43: 0
A44: Дослідження і розробки, окремі заходи по реалізації державних (регіональних) програм | B44: 2280 | C44: 220 | D44: =SUM(D45:D46) -> 0 | E44: 0 | F44: =SUM(F45:F46) -> 0 | G44: 0 | H44: 0 | I44: 0 | J44: 0 | K44: 0 | L44: 0 | M44: 0 | N44: =SUM(N45:N46) -> 0
A45: Дослідження і розробки, окремі заходи розвитку по реалізації державних (регіональних) програм | B45: 2281 | C45: 230 | D45: 0 | E45: 0 | F45: 0 | G45: 0 | H45: 0 | I45: 0 | J45: 0 | K45: 0 | L45: 0 | M45: 0 | N45: 0
A46: Окремі заходи по реалізації державних (регіональних) програм, не віднесені до заходів розвитку | B46: 2282 | C46: 240 | D46: 0 | E46: 0 | F46: 0 | G46: 0 | H46: 0 | I46: 0 | J46: 0 | K46: 0 | L46: 0 | M46: 0 | N46: 0
A47: Обслуговування боргових зобов’язань | B47: 2400 | C47: 250 | D47: =SUM(D48:D49) -> 0 | E47: 0 | F47: =SUM(F48:F49) -> 0 | G47: =SUM(G48:G49) -> 0 | H47: 0 | I47: 0 | J47: 0 | K47: =SUM(K48:K49) -> 0 | L47: 0 | M47: 0 | N47: =SUM(N48:N49) -> 0
A48: Обслуговування внутрішніх боргових зобов’язань | B48: 2410 | C48: 260 | D48: 0 | E48: 0 | F48: 0 | G48: 0 | H48: 0 | I48: 0 | J48: 0 | K48: 0 | L48: 0 | M48: 0 | N48: 0
A49: Обслуговування зовнішніх боргових зобов’язань | B49: 2420 | C49: 270 | D49: 0 | E49: 0 | F49: 0 | G49: 0 | H49: 0 | I49: 0 | J49: 0 | K49: 0 | L49: 0 | M49: 0 | N49: 0
A50: Поточні трансферти | B50: 2600 | C50: 280 | D50: =SUM(D51:D53) -> 0 | E50: 0 | F50: =SUM(F51:F53) -> 0 | G50: =SUM(G51:G53) -> 0 | H50: 0 | I50: 0 | J50: 0 | K50: =SUM(K51:K53) -> 0 | L50: 0 | M50: 0 | N50: =SUM(N51:N53) -> 0
A51: Субсидії та поточні трансферти підприємствам (установам, організаціям) | B51: 2610 | C51: 290 | D51: 0 | E51: 0 | F51: 0 | G51: 0 | H51: 0 | I51: 0 | J51: 0 | K51: 0 | L51: 0 | M51: 0 | N51: 0
A52: Поточні трансферти органам державного управління інших рівнів | B52: 2620 | C52: 300 | D52: 0 | E52: 0 | F52: 0 | G52: 0 | H52: 0 | I52: 0 | J52: 0 | K52: 0 | L52: 0 | M52: 0 | N52: 0
A53: Поточні трансферти урядам іноземних держав та міжнародним організаціям | B53: 2630 | C53: 310 | D53: 0 | E53: 0 | F53: 0 | G53: 0 | H53: 0 | I53: 0 | J53: 0 | K53: 0 | L53: 0 | M53: 0 | N53: 0
A54: Соціальне забезпечення | B54: 2700 | C54: 320 | D54: =SUM(D55:D57) -> 0 | E54: 0 | F54: =SUM(F55:F57) -> 0 | G54: =SUM(G55:G57) -> 0 | H54: 0 | I54: 0 | J54: 0 | K54: =SUM(K55:K57) -> 0 | L54: 0 | M54: 0 | N54: =SUM(N55:N57) -> 0
A55: Виплата пенсій і допомоги | B55: 2710 | C55: 330 | D55: 0 | E55: 0 | F55: 0 | G55: 0 | H55: 0 | I55: 0 | J55: 0 | K55: 0 | L55: 0 | M55: 0 | N55: 0
A56: Стипендії | B56: 2720 | C56: 340 | D56: 0 | E56: 0 | F56: 0 | G56: 0 | H56: 0 | I56: 0 | J56: 0 | K56: 0 | L56: 0 | M56: 0 | N56: 0
A57: Інші виплати населенню | B57: 2730 | C57: 350 | D57: 0 | E57: 0 | F57: 0 | G57: 0 | H57: 0 | I57: 0 | J57: 0 | K57: 0 | L57: 0 | M57: 0 | N57: 0
A58: Інші поточні видатки | B58: 2800 | C58: 360 | D58: 0 | E58: 0 | F58: 0 | G58: 0 | H58: 0 | I58: 0 | J58: 0 | K58: 0 | L58: 0 | M58: 0 | N58: 0
A59: Капітальні видатки | B59: 3000 | C59: 370 | D59: =D60+D74 -> 0 | E59: 0 | F59: =F60+F74 -> 0 | G59: =G60+G74 -> 0 | H59: 0 | I59: 0 | J59: 0 | K59: =K60+K74 -> 0 | L59: 0 | M59: 0 | N59: =N60+N74 -> 0
A60: Придбання основного капіталу | B60: 3100 | C60: 380 | D60: =D61+D62+D65+D68+D72+D73 -> 0 | E60: 0 | F60: =F61+F62+F65+F68+F72+F73 -> 0 | G60: =G61+G62+G65+G68+G72+G73 -> 0 | H60: 0 | I60: 0 | J60: 0 | K60: =K61+K62+K65+K68+K72+K73 -> 0 | L60: 0 | M60: 0 | N60: =N61+N62+N65+N68+N72+N73 -> 0
A61: Придбання обладнання і предметів довгострокового користування | B61: 3110 | C61: 390 | D61: 0 | E61: 0 | F61: 0 | G61: 0 | H61: 0 | K61: 0 | L61: 0 | M61: 0 | N61: 0
A62: Капітальне будівництво (придбання) | B62: 3120 | C62: 400 | D62: =SUM(D63:D64) -> 0 | E62: 0 | F62: =SUM(F63:F64) -> 0 | G62: =SUM(G63:G64) -> 0 | H62: 0 | I62: 0 | J62: 0 | K62: =SUM(K63:K64) -> 0 | L62: 0 | M62: 0 | N62: =SUM(N63:N64) -> 0
A63: Капітальне будівництво (придбання) житла | B63: 3121 | C63: 410 | D63: 0 | E63: 0 | F63: 0 | G63: 0 | H63: 0 | I63: 0 | J63: 0 | K63: 0 | L63: 0 | M63: 0 | N63: 0
A64: Капітальне будівництво (придбання) інших об’єктів | B64: 3122 | C64: 420 | D64: 0 | E64: 0 | F64: 0 | G64: 0 | H64: 0 | I64: 0 | J64: 0 | K64: 0 | L64: 0 | M64: 0 | N64: 0
A65: Капітальний ремонт | B65: 3130 | C65: 430 | D65: =SUM(D66:D67) -> 0 | E65: 0 | F65: =SUM(F66:F67) -> 0 | G65: =SUM(G66:G67) -> 0 | H65: 0 | I65: 0 | J65: 0 | K65: =SUM(K66:K67) -> 0 | L65: 0 | M65: 0 | N65: =SUM(N66:N67) -> 0
A66: Капітальний ремонт житлового фонду (приміщень) | B66: 3131 | C66: 440 | D66: 0 | E66: 0 | F66: 0 | G66: 0 | H66: 0 | I66: 0 | J66: 0 | K66: 0 | L66: 0 | M66: 0 | N66: 0
A67: Капітальний ремонт інших об’єктів | B67: 3132 | C67: 450 | D67: 0 | E67: 0 | F67: 0 | G67: 0 | H67: 0 | L67: 0 | M67: 0 | N67: 0
A68: Реконструкція та реставрація | B68: 3140 | C68: 460 | D68: =SUM(D69:D71) -> 0 | E68: 0 | F68: =SUM(F69:F71) -> 0 | G68: =SUM(G69:G71) -> 0 | H68: 0 | I68: 0 | J68: 0 | K68: =SUM(K69:K71) -> 0 | L68: 0 | M68: 0 | N68: =SUM(N69:N71) -> 0
A69: Реконструкція житлового фонду (приміщень) | B69: 3141 | C69: 470 | D69: 0 | E69: 0 | F69: 0 | G69: 0 | H69: 0 | I69: 0 | J69: 0 | K69: 0 | L69: 0 | M69: 0 | N69: 0
A70: Реконструкція та реставрація інших об’єктів | B70: 3142 | C70: 480 | D70: 0 | E70: 0 | F70: 0 | G70: 0 | H70: 0 | I70: 0 | J70: 0 | K70: 0 | L70: 0 | M70: 0 | N70: 0
A71: Реставрація пам’яток культури, історії та архітектури | B71: 3143 | C71: 490 | D71: 0 | E71: 0 | F71: 0 | G71: 0 | H71: 0 | I71: 0 | J71: 0 | K71: 0 | L71: 0 | M71: 0 | N71: 0
A72: Створення державних запасів і резервів | B72: 3150 | C72: 500 | D72: 0 | E72: 0 | F72: 0 | G72: 0 | H72: 0 | I72: 0 | J72: 0 | K72: 0 | L72: 0 | M72: 0 | N72: 0
A73: Придбання землі та нематеріальних активів | B73: 3160 | C73: 510 | D73: 0 | E73: 0 | F73: 0 | G73: 0 | H73: 0 | I73: 0 | J73: 0 | K73: 0 | L73: 0 | M73: 0 | N73: 0
A74: Капітальні трансферти | B74: 3200 | C74: 520 | D74: =SUM(D75:D78) -> 0 | E74: 0 | F74: =SUM(F75:F78) -> 0 | G74: =SUM(G75:G78) -> 0 | H74: 0 | I74: 0 | J74: 0 | K74: =SUM(K75:K78) -> 0 | L74: 0 | M74: 0 | N74: =SUM(N75:N78) -> 0
A75: Капітальні трансферти підприємствам (установам, організаціям) | B75: 3210 | C75: 530 | D75: 0 | E75: 0 | F75: 0 | G75: 0 | H75: 0 | I75: 0 | J75: 0 | K75: 0 | L75: 0 | M75: 0 | N75: 0
A76: Капітальні трансферти органам державного управління інших рівнів | B76: 3220 | C76: 540 | D76: 0 | E76: 0 | F76: 0 | G76: 0 | H76: 0 | I76: 0 | J76: 0 | K76: 0 | L76: 0 | M76: 0 | N76: 0
A77: Капітальні трансферти урядам іноземних держав та міжнародним організаціям | B77: 3230 | C77: 550 | D77: 0 | E77: 0 | F77: 0 | G77: 0 | H77: 0 | I77: 0 | J77: 0 | K77: 0 | L77: 0 | M77: 0 | N77: 0
A78: Капітальні трансферти населенню | B78: 3240 | C78: 560 | D78: 0 | E78: 0 | F78: 0 | G78: 0 | H78: 0 | I78: 0 | J78: 0 | K78: 0 | L78: 0 | M78: 0 | N78: 0
A79: Внутрішнє кредитування | B79: 4100 | C79: 570 | D79: =SUM(D80) -> 0 | E79: 0 | F79: 0 | G79: 0 | H79: 0 | I79: 0 | J79: 0 | K79: 0 | L79: 0 | M79: 0 | N79: 0
A80: Надання внутрішніх кредитів | B80: 4110 | C80: 580 | D80: =SUM(D81:D83) -> 0 | E80: 0 | F80: =SUM(F81:F83) -> 0 | G80: =SUM(G81:G83) -> 0 | H80: 0 | I80: 0 | J80: 0 | K80: =SUM(K81:K83) -> 0 | L80: 0 | M80: 0 | N80: =SUM(N81:N83) -> 0
A81: Надання кредитів органам державного управління інших рівнів | B81: 4111 | C81: 590 | D81: 0 | E81: 0 | F81: 0 | G81: 0 | H81: 0 | I81: 0 | J81: 0 | K81: 0 | L81: 0 | M81: 0 | N81: 0
A82: Надання кредитів підприємствам, установам, організаціям | B82: 4112 | C82: 600 | D82: 0 | E82: 0 | F82: 0 | G82: 0 | H82: 0 | I82: 0 | J82: 0 | K82: 0 | L82: 0 | M82: 0 | N82: 0
A83: Надання інших внутрішніх кредитів | B83: 4113 | C83: 610 | D83: 0 | E83: 0 | F83: 0 | G83: 0 | H83: 0 | I83: 0 | J83: 0 | K83: 0 | L83: 0 | M83: 0 | N83: 0
A84: Зовнішнє кредитування | B84: 4200 | C84: 620 | D84: =D85 -> 0 | E84: 0 | F84: 0 | G84: 0 | H84: 0 | I84: 0 | J84: 0 | K84: 0 | L84: 0 | M84: 0 | N84: 0
A85: Надання зовнішніх кредитів | B85: 4210 | C85: 630 | D85: 0 | E85: 0 | F85: 0 | G85: 0 | H85: 0 | I85: 0 | J85: 0 | K85: 0 | L85: 0 | M85: 0 | N85: 0
A86: Інші видатки | B86: 5000 | C86: 640 | D86: X | E86: 0 | F86: X | G86: X | H86: X | I86: X | J86: X | K86: X | L86: X | M86: X | N86: X
A95: 1 Заповнюється розпорядниками бюджетних коштів.
A98: =ЗАПОЛНИТЬ!F30 -> Начальник | G98: =ЗАПОЛНИТЬ!F26 -> Коваль М.С.
B99: (підпис) | G99: (ініціали, прізвище)
A100: =ЗАПОЛНИТЬ!F31 -> Головний бухгалтер | G100: =ЗАПОЛНИТЬ!F28 -> Жук О.С.
B101: (підпис) | G101: (ініціали, прізвище)
A102: =ЗАПОЛНИТЬ!C19 -> 1 квітня 2020 року
